{"text_format":"1","workbook":"xlsx","n_sheets":3,"sheets":["Consolidação","Relação Anexa","Plan3"],"not_rendered":{"charts":0,"images":1,"macros":1,"external_links":2,"defined_names":8,"comments":2,"pivot_tables":0},"unopened":[],"bounds":{"document_bytes":16777216,"sheet_cells":100000,"rows_first":2000,"rows_last":500,"rows_between":2000,"halvings":0,"cell_chars":16384,"cell_head_chars":4096},"cells_cut":0,"cells_raw":0,"read":"whole","date_system":"1900"}

{"sheet":"Consolidação","index":0,"n_rows":175,"n_cols":30,"rows_kept":175,"cut":false,"hidden":false,"merged":[[45,1,45,2],[20,2,20,10],[25,15,25,16],[43,4,43,5],[18,19,25,19],[35,6,35,7],[36,6,36,7],[37,6,37,7],[3,0,3,18],[8,0,8,18],[15,0,15,18],[12,1,12,5],[12,7,12,12],[12,14,12,18],[7,0,7,19],[9,1,9,5],[9,14,9,18],[9,7,9,12],[11,1,11,5],[11,7,11,12],[4,0,6,0],[18,15,18,16],[18,13,18,14],[17,2,17,10],[18,2,18,10],[19,2,19,10],[26,13,26,14],[4,1,4,12],[4,14,4,18],[5,14,5,18],[16,1,16,19],[28,17,28,18],[29,17,29,18],[28,15,28,16],[29,15,29,16],[11,14,11,18],[10,1,10,5],[10,7,10,12],[10,14,10,18],[6,1,6,19],[4,19,5,19],[25,17,25,18],[26,17,26,18],[19,15,19,16],[20,15,20,16],[21,15,21,16],[22,15,22,16],[26,15,26,16],[23,15,23,16],[24,15,24,16],[17,15,17,16],[17,13,17,14],[18,17,18,18],[19,17,19,18],[20,17,20,18],[21,17,21,18],[22,17,22,18],[23,17,23,18],[24,17,24,18],[27,1,27,12],[28,1,28,12],[29,1,29,12],[14,0,14,19],[33,19,40,19],[43,7,43,12],[43,14,43,18],[34,3,34,13],[39,14,39,18],[39,1,39,12],[38,1,38,18],[37,14,37,18],[41,0,41,18],[42,14,42,18],[42,6,42,12],[42,1,42,5],[40,0,40,18],[35,1,35,2],[36,1,36,2],[37,1,37,2],[34,14,34,18],[35,14,35,18],[36,14,36,18],[43,1,43,3],[5,2,5,12],[2,0,2,19],[44,1,44,18],[21,2,21,10],[22,2,22,10],[23,2,23,10],[24,2,24,10],[25,2,25,10],[26,2,26,10],[27,17,27,18],[27,15,27,16],[27,13,27,14],[19,13,19,14],[20,13,20,14],[21,13,21,14],[22,13,22,14],[23,13,23,14],[24,13,24,14],[25,13,25,14],[32,0,32,18],[16,0,27,0],[17,17,17,18],[28,13,28,14],[29,13,29,14]]}
[null,null,null,null,null,null,null,null,null,null,null,null,null,null,null,null,null,null,null,null,null,null,null,null,null,null,null,"LISTA"]
[null,null,null,null,null,null,null,null,null,null,null,null,null,null,null,null,null,null,null,null,null,null,null,null,"da","EMEB","","Afonso Monteiro da Cruz",{"$f":"TRIM(CONCATENATE(Y2,\" \",Z2,\" \",AA2,\" \",AB2))","v":"da EMEB Afonso Monteiro da Cruz"},"11.983.300/0001-54"]
[null,null,null,null,null,null,null,null,null,null,null,null,null,null,null,null,null,null,null,null,null,null,null,null,"da","EMEB","","Agostinho dos Santos","da EMEB Agostinho dos Santos","14.585.876/0001-51"]
["BLOCO I - IDENTIFICAÇÃO DA UNIDADE EXECUTORA PRÓPRIA (APM)",null,null,null,null,null,null,null,null,null,null,null,null,null,null,null,null,null,null,null,null,null,null,null,"da","EMEB","","Aldino Pinotti","da EMEB Aldino Pinotti","49.522.303/0001-63"]
[null,"01 - Razão Social ",null,null,null,null,null,null,null,null,null,null,null,null,"02 - CNPJ",null,null,null,null,null,null,null,null,null,"da","EMEB","Prefeito","Aldino Pinotti","da EMEB Prefeito Aldino Pinotti","49.253.412/0001-22"]
[null,"APM",null,null,null,null,null,null,null,null,null,null,null,null,{"$f":"IFERROR(VLOOKUP(C6,AC2:AD173,2,),\"\")","v":""},null,null,null,null,null,null,null,null,null,"da","EMEB","","Alfredo Scarpelli","da EMEB Alfredo Scarpelli","06.317.445/0001-86"]
[null,null,null,null,null,null,null,null,null,null,null,null,null,null,null,null,null,null,null,null,null,null,null,null,"da","EMEB","Professora","Alice do Lago Gonçalves Salvador","da EMEB Professora Alice do Lago Gonçalves Salvador","03.565.566/0001-59"]
[null,null,null,null,null,null,null,null,null,null,null,null,null,null,null,null,null,null,null,null,null,null,null,null,"da","EMEB","","Aluísio de Azevedo","da EMEB Aluísio de Azevedo","49.522.238/0001-76"]
["BLOCO II - IDENTIFICAÇÃO DOS PROPONENTES (Fornecedores de produtos ou prestadores de serviços)",null,null,null,null,null,null,null,null,null,null,null,null,null,null,null,null,null,null,null,null,null,null,null,"da","EMEB","","Ana Henriqueta Clark Marim","da EMEB Ana Henriqueta Clark Marim","69.255.396/0001-14"]
[null,"03 - Razão Social do Proponente (A)",null,null,null,null,null,"03 - Razão Social do Proponente (B)",null,null,null,null,null,null,"03 - Razão Social do Proponente (C)",null,null,null,null,null,null,null,null,null,"da","EMEB","","Ana Maria Poppovic","da EMEB Ana Maria Poppovic","43.336.262/0001-34"]
[null,null,null,null,null,null,null,null,null,null,null,null,null,null,null,null,null,null,null,null,null,null,null,null,"da","EMEB","Professor","André Ferreira","da EMEB Professor André Ferreira","55.039.127/0001-06"]
[null,"04 - CNPJ do Proponente (A)",null,null,null,null,null,"04 - CNPJ do Proponente (B)",null,null,null,null,null,null,"04 - CNPJ do Proponente (C)",null,null,null,null,null,null,null,null,null,"da","EMEB","Padre","Ângelo Ceroni","da EMEB Padre Ângelo Ceroni","04.112.885/0001-71"]
[null,null,null,null,null,null,null,null,null,null,null,null,null,null,null,null,null,null,null,null,null,null,null,null,"da","EMEB","","Anísio Teixeira","da EMEB Anísio Teixeira","43.350.867/0001-80"]
[null,null,null,null,null,null,null,null,null,null,null,null,null,null,null,null,null,null,null,null,null,null,null,null,"da","EMEB","Professora","Annita Magrini Guedes","da EMEB Professora Annita Magrini Guedes","49.521.107/0001-74"]
[null,null,null,null,null,null,null,null,null,null,null,null,null,null,null,null,null,null,null,null,null,null,null,null,"da","EMEB","","Antônio de Lima","da EMEB Antônio de Lima","53.713.541/0001-23"]
["BLOCO III - PROPOSTAS (R$ 1,00)",null,null,null,null,null,null,null,null,null,null,null,null,null,null,null,null,null,null,null,null,null,null,null,"da","EMEB","","Antônio dos Santos Farias","da EMEB Antônio dos Santos Farias","10.559.778/0001-99"]
[null,null,null,null,null,null,null,null,null,null,null,null,null,null,null,null,null,null,null,null,null,null,null,null,"da","EMEB","","Antônio José Mantuan","da EMEB Antônio José Mantuan","04.796.871/0001-14"]
[null,"05 - Item","06 - Descrição dos Produtos e Serviços",null,null,null,null,null,null,null,null,"07 - Unid.","08 - Quant.","09 - Valor Proponente (A)",null,"10 - Valor Proponente (B)",null,"11 - Valor Proponente (C)",null,null,null,null,"Proponente",null,"da","EMEB","","Antônio Pereira Coutinho","da EMEB Antônio Pereira Coutinho","55.061.378/0001-97"]
[null,{"$f":"IF(C19<>\"\",1,\"\")","v":""},null,null,null,null,null,null,null,null,null,null,null,null,null,null,null,null,null,null,{"$f":"IFERROR(SMALL(N19:S19,1),\"\")","v":""},1,{"$f":"MATCH(U19,N19:S19,0)","v":{"$error":"#N/A"}},{"$f":"IF(W19=1,\"A\",IF(W19=3,\"B\",IF(W19=5,\"C\",\"\")))","v":{"$error":"#N/A"}},"da","EMEB","","Ari Lacerda Rodrigues","da EMEB Ari Lacerda Rodrigues","05.943.589/0001-85"]
[null,{"$f":"IF(AND(C20<>\"\",C19<>\"\"),B19+1,\"\")","v":""},null,null,null,null,null,null,null,null,null,null,null,null,null,null,null,null,null,null,"",2,{"$error":"#N/A"},{"$error":"#N/A"},"da ","EMEB",null,"Ariano Suassuna","da EMEB Ariano Suassuna","28.106.724/0001-33"]
[null,{"$f":"IF(AND(C21<>\"\",C20<>\"\"),B20+1,\"\")","v":""},null,null,null,null,null,null,null,null,null,null,null,null,null,null,null,null,null,null,"",3,{"$error":"#N/A"},{"$error":"#N/A"},"da","EMEB","","Arlindo Ferreira","da EMEB Arlindo Ferreira","11.202.466/0001-96"]
[null,"",null,null,null,null,null,null,null,null,null,null,null,null,null,null,null,null,null,null,"",4,{"$error":"#N/A"},{"$error":"#N/A"},"da","EMEB","","Arlindo Miguel Teixeira","da EMEB Arlindo Miguel Teixeira","04.159.293/0001-05"]
[null,"",null,null,null,null,null,null,null,null,null,null,null,null,null,null,null,null,null,null,"",5,{"$error":"#N/A"},{"$error":"#N/A"},"da","EMEB","","Armando Zoboli","da EMEB Armando Zoboli","10.515.623/0001-50"]
[null,"",null,null,null,null,null,null,null,null,null,null,null,null,null,null,null,null,null,null,"",6,{"$error":"#N/A"},{"$error":"#N/A"},"da","EMEB","Professor","Áureo Cruz","da EMEB Professor Áureo Cruz","00.665.728/0001-32"]
[null,"",null,null,null,null,null,null,null,null,null,null,null,null,null,null,null,null,null,null,"",7,{"$error":"#N/A"},{"$error":"#N/A"},"da","EMEB","","Belmiro Soares da Cunha","da EMEB Belmiro Soares da Cunha","06.317.404/0001-90"]
[null,"",null,null,null,null,null,null,null,null,null,null,null,null,null,null,null,null,null,null,"",8,{"$error":"#N/A"},{"$error":"#N/A"},"da","EMEB","","Benedito José de Morais","da EMEB Benedito José de Morais","06.339.021/0001-12"]
[null,"",null,null,null,null,null,null,null,null,null,null,null,null,null,null,null,null,null,null,"",9,{"$error":"#N/A"},{"$error":"#N/A"},"da","EMEB","","Bernardo Pedroso","da EMEB Bernardo Pedroso","43.339.068/0001-02"]
[null,null,null,null,null,null,null,null,null,null,null,null,null,"Proponente (A)",null,"Proponente (B)",null,"Proponente (C)",null,null,null,null,null,null,"da","EMEB","","Bosko Preradovic","da EMEB Bosko Preradovic","05.861.941/0001-33"]
[null,"12 - Valor Total da Proposta    :",null,null,null,null,null,null,null,null,null,null,null,{"$f":"SUM(N19:O27)","v":0},null,{"$f":"SUM(P19:Q27)","v":0},null,{"$f":"SUM(R19:S27)","v":0},null,null,null,null,null,null,"da","EMEB","","Bruno Massone","da EMEB Bruno Massone","06.131.628/0001-02"]
[null,"13 - Valor Total da Proposta, com desconto ou com acréscimo (frete, por exemplo):",null,null,null,null,null,null,null,null,null,null,null,null,null,null,null,null,null,null,null,null,"Unidades",null,"da","EMEB","","Caetano de Campos","da EMEB Caetano de Campos","49.522.345/0001-02"]
[null,null,null,null,null,null,null,null,null,null,null,null,null,null,null,null,null,null,null,null,null,null,"Caixa",null,"da","EMEB","","Cândido Portinari","da EMEB Cândido Portinari","49.524.283/0001-60"]
[null,null,null,null,null,null,null,null,null,null,null,null,null,null,null,null,null,null,null,null,null,null,"g",null,"da","EMEB","","Carlos Gomes","da EMEB Carlos Gomes","49.524.374/0001-03"]
["BLOCO IV - APURAÇÃO DAS PROPOSTAS",null,null,null,null,null,null,null,null,null,null,null,null,null,null,null,null,null,null,null,null,null,"Kit",null,"da","EMEB","Professora","Carmen Tabet de Oliveira Marques","da EMEB Professora Carmen Tabet de Oliveira Marques","04.208.681/0001-39"]
[null,null,null,null,null,null,null,null,null,null,null,null,null,null,null,null,null,null,null,null,null,null,"kg",null,"da","EMEB",null,"Carolina Maria de Jesus",{"$f":"TRIM(CONCATENATE(Y34,\" \",Z34,\" \",AA34,\" \",AB34))","v":"da EMEB Carolina Maria de Jesus"},"27.993.309/0001-86"]
[null,null,null,"14 - ITENS de Menor Valor (Apenas o número do ITEM do Campo 05)",null,null,null,null,null,null,null,null,null,null,"15 - Valor dos Itens de Menor Valor (valor máximo a ser pago pelos itens)",null,null,null,null,null,null,null,"litro",null,"da","EMEB","Professor","Cassiano Faria",{"$f":"TRIM(CONCATENATE(Y35,\" \",Z35,\" \",AA35,\" \",AB35))","v":"da EMEB Professor Cassiano Faria"},"49.521.131/0001-03"]
[null,"Proponente (A)",null,{"$f":"IFERROR(IF($X$19=\"A\",$V$19,\"-\"),\"\")","v":""},{"$f":"IFERROR(IF($X$20=\"A\",$V$20,\"-\"),\"\")","v":""},{"$f":"IFERROR(IF($X$21=\"A\",$V$21,\"-\"),\"\")","v":""},{"$f":"IFERROR(IF($X$22=\"A\",$V$22,\"-\"),\"\")","v":""},{"$f":"IF($X$21=\"A\",$V$21,\"***\")","v":{"$error":"#N/A"}},{"$f":"IFERROR(IF($X$23=\"A\",$V$23,\"-\"),\"\")","v":""},{"$f":"IFERROR(IF($X$24=\"A\",$V$24,\"-\"),\"\")","v":""},{"$f":"IFERROR(IF($X$25=\"A\",$V$25,\"-\"),\"\")","v":""},{"$f":"IFERROR(IF($X$26=\"A\",$V$26,\"-\"),\"\")","v":""},{"$f":"IFERROR(IF($X$27=\"A\",$V$27,\"-\"),\"\")","v":""},null,{"$f":"SUMIF(X19:X27,\"A\",U19:U27)","v":0},null,null,null,null,null,null,null,"LOTE",null,"da","EMEB","","Cassiano Ricardo","da EMEB Cassiano Ricardo","49.522.287/0001-09"]
[null,"Proponente (B)",null,{"$f":"IFERROR(IF($X$19=\"B\",$V$19,\"-\"),\"\")","v":""},{"$f":"IFERROR(IF($X$20=\"B\",$V$20,\"-\"),\"\")","v":""},{"$f":"IFERROR(IF($X$21=\"B\",$V$21,\"-\"),\"\")","v":""},{"$f":"IFERROR(IF($X$22=\"b\",$V$22,\"-\"),\"\")","v":""},{"$error":"#N/A"},{"$f":"IFERROR(IF($X$23=\"b\",$V$23,\"-\"),\"\")","v":""},{"$f":"IFERROR(IF($X$24=\"b\",$V$24,\"-\"),\"\")","v":""},{"$f":"IFERROR(IF($X$25=\"b\",$V$25,\"-\"),\"\")","v":""},{"$f":"IFERROR(IF($X$26=\"b\",$V$26,\"-\"),\"\")","v":""},{"$f":"IFERROR(IF($X$27=\"b\",$V$27,\"-\"),\"\")","v":""},null,{"$f":"SUMIF(X19:X27,\"b\",U19:U27)","v":0},null,null,null,null,null,null,null,"m",null,"da","EMEB","","Castro Alves","da EMEB Castro Alves","49.522.931/0001-49"]
[null,"Proponente (C)",null,{"$f":"IFERROR(IF($X$19=\"C\",$V$19,\"-\"),\"\")","v":""},{"$f":"IFERROR(IF($X$20=\"C\",$V$20,\"-\"),\"\")","v":""},{"$f":"IFERROR(IF($X$21=\"C\",$V$21,\"-\"),\"\")","v":""},{"$f":"IFERROR(IF($X$22=\"c\",$V$22,\"-\"),\"\")","v":""},{"$error":"#N/A"},{"$f":"IFERROR(IF($X$23=\"c\",$V$23,\"-\"),\"\")","v":""},{"$f":"IFERROR(IF($X$24=\"c\",$V$24,\"-\"),\"\")","v":""},{"$f":"IFERROR(IF($X$25=\"c\",$V$25,\"-\"),\"\")","v":""},{"$f":"IFERROR(IF($X$26=\"c\",$V$26,\"-\"),\"\")","v":""},{"$f":"IFERROR(IF($X$27=\"c\",$V$27,\"-\"),\"\")","v":""},null,{"$f":"SUMIF(X19:X27,\"c\",U19:U27)","v":0},null,null,null,null,null,null,null,"m²",null,"da","EMEB","","Cecília Meireles","da EMEB Cecília Meireles","49.527.260/0001-09"]
[null,null,null,null,null,null,null,null,null,null,null,null,null,null,null,null,null,null,null,null,null,null,"m³",null,"da","EMEB","Professora","Cecília Oliveira Turbay","da EMEB Professora Cecília Oliveira Turbay","04.825.914/0001-42"]
[null,"16 - Soma dos itens de menor valor     :",null,null,null,null,null,null,null,null,null,null,null,null,{"$f":"SUM(U19:U27)","v":0},null,null,null,null,null,null,null,"Pacote",null,"do","CEU","","Celso Augusto Daniel","do CEU Celso Augusto Daniel","18.840.187/0001-05"]
[null,null,null,null,null,null,null,null,null,null,null,null,null,null,null,null,null,null,null,null,null,null,"Peça",null,"da","EMEB","","Cícero Porfírio dos Santos/Gilberto Lazzuri","da EMEB Cícero Porfírio dos Santos/Gilberto Lazzuri","03.396.684/0001-80"]
["BLOCO V - AUTENTICAÇÃO",null,null,null,null,null,null,null,null,null,null,null,null,null,null,null,null,null,null,null,null,null,"Pote",null,"da","EMEB","Professor","Claudemir Gomes do Vale","da EMEB Professor Claudemir Gomes do Vale","06.309.858/0001-19"]
[null,"17 - Local e Data",null,null,null,null,"18 - Nome do(a) Diretor(a) Executivo(a) da APM",null,null,null,null,null,null,null,"19 - Assinatura do(a) Diretor(a) Executivo(a) da APM",null,null,null,null,null,null,null,"resma",null,"da","EMEB","","Cléia Maria Teures de Souza","da EMEB Cléia Maria Teures de Souza","55.056.907/0001-64"]
[null,"São Bernardo do Campo, ",null,null,null,null,null,null,null,null,null,null,null,null,null,null,null,null,null,null,null,null,"UN",null,"da","EMEB","","Coelho Neto","da EMEB Coelho Neto","49.526.098/0001-04"]
[null,null,null,null,null,null,null,null,null,null,null,null,null,null,null,null,null,null,null,null,null,null,null,null,"da","EMEB","","Cora Coralina","da EMEB Cora Coralina","55.058.945/0001-56"]
[null,"SE-33",null,null,null,null,null,null,null,null,null,null,null,null,null,null,null,null,null,null,null,null,null,null,"da","EMEB","","Di Cavalcanti",{"$f":"TRIM(CONCATENATE(Y46,\" \",Z46,\" \",AA46,\" \",AB46))","v":"da EMEB Di Cavalcanti"},"49.527.005/0001-66"]
[null,null,null,null,null,null,null,null,null,null,null,null,null,null,null,null,null,null,null,null,null,null,null,null,"da","EMEB","Professora","Dolores de Toledo de Matteo","da EMEB Professora Dolores de Toledo de Matteo","04.891.418/0001-97"]
[null,null,null,null,null,null,null,null,null,null,null,null,null,null,null,null,null,null,null,null,null,null,null,null,"da","EMEB","","Dora e Maurício Galante","da EMEB Dora e Maurício Galante","04.825.526/0001-61"]
[null,null,null,null,null,null,null,null,null,null,null,null,null,null,null,null,null,null,null,null,null,null,null,null,"da","EMEB","","Edson Danillo Dotto","da EMEB Edson Danillo Dotto","04.165.492/0001-26"]
[null,null,null,null,null,null,null,null,null,null,null,null,null,null,null,null,null,null,null,null,null,null,null,null,"da","EMEB","Professora","Ermínia Paggi","da EMEB Professora Ermínia Paggi","03.187.328/0001-57"]
[null,null,null,null,null,null,null,null,null,null,null,null,null,null,null,null,null,null,null,null,null,null,null,null,"da","EMEB","","Euclides da Cunha","da EMEB Euclides da Cunha","49.522.295/0001-55"]
[null,null,null,null,null,null,null,null,null,null,null,null,null,null,null,null,null,null,null,null,null,null,null,null,"da","EMEB","","Eunice Alves Enéas Soares","da EMEB Eunice Alves Enéas Soares","14.618.560/0001-19"]
[null,null,null,null,null,null,null,null,null,null,null,null,null,null,null,null,null,null,null,null,null,null,null,null,"da","EMEB","","Fernando Pessoa","da EMEB Fernando Pessoa","00.656.392/0001-41"]
[null,null,null,null,null,null,null,null,null,null,null,null,null,null,null,null,null,null,null,null,null,null,null,null,"da","EMEB","Padre","Fiorente Elena","da EMEB Padre Fiorente Elena","67.176.156/0001-07"]
[null,null,null,null,null,null,null,null,null,null,null,null,null,null,null,null,null,null,null,null,null,null,null,null,"da","EMEB","Estudante","Flamínio Araújo de Castro Rangel","da EMEB Estudante Flamínio Araújo de Castro Rangel","49.520.851/0001-54"]
[null,null,null,null,null,null,null,null,null,null,null,null,null,null,null,null,null,null,null,null,null,null,null,null,"da","EMEB","Professor","Florestan Fernandes","da EMEB Professor Florestan Fernandes","71.531.966/0001-01"]
[null,null,null,null,null,null,null,null,null,null,null,null,null,null,null,null,null,null,null,null,null,null,null,null,"da","EMEB","","Francisco Beltran Batistini \"Paquito\"","da EMEB Francisco Beltran Batistini \"Paquito\"","06.339.025/0001-09"]
[null,null,null,null,null,null,null,null,null,null,null,null,null,null,null,null,null,null,null,null,null,null,null,null,"da","EMEB","","Francisco Diassis Gomes Teixeira","da EMEB Francisco Diassis Gomes Teixeira","14.053.200/0001-17"]
[null,null,null,null,null,null,null,null,null,null,null,null,null,null,null,null,null,null,null,null,null,null,null,null,"da","EMEB","","Francisco Miele","da EMEB Francisco Miele","53.709.523/0001-78"]
[null,null,null,null,null,null,null,null,null,null,null,null,null,null,null,null,null,null,null,null,null,null,null,null,"da","EMEB","","Geraldo de Melo Ferreira","da EMEB Geraldo de Melo Ferreira","04.806.224/0001-46"]
[null,null,null,null,null,null,null,null,null,null,null,null,null,null,null,null,null,null,null,null,null,null,null,null,"da","EMEB","Professor","Geraldo Hypólito","da EMEB Professor Geraldo Hypólito","49.256.027/0001-39"]
[null,null,null,null,null,null,null,null,null,null,null,null,null,null,null,null,null,null,null,null,null,null,null,null,"da","EMEB","Vereador","Gervásio Paz Folha","da EMEB Vereador Gervásio Paz Folha","11.205.300/0001-23"]
[null,null,null,null,null,null,null,null,null,null,null,null,null,null,null,null,null,null,null,null,null,null,null,null,"da","EMEB","","Gildo dos Santos","da EMEB Gildo dos Santos","04.871.812/0001-63"]
[null,null,null,null,null,null,null,null,null,null,null,null,null,null,null,null,null,null,null,null,null,null,null,null,"da","EMEB","","Gofredo Teixeira da Silva Telles","da EMEB Gofredo Teixeira da Silva Telles","49.521.123/0001-67"]
[null,null,null,null,null,null,null,null,null,null,null,null,null,null,null,null,null,null,null,null,null,null,null,null,"da","EMEB","","Gonçalves Dias","da EMEB Gonçalves Dias","49.527.450/0001-26"]
[null,null,null,null,null,null,null,null,null,null,null,null,null,null,null,null,null,null,null,null,null,null,null,null,"da","EMEB","","Graciliano Ramos","da EMEB Graciliano Ramos","50.154.863/0001-91"]
[null,null,null,null,null,null,null,null,null,null,null,null,null,null,null,null,null,null,null,null,null,null,null,null,"da","EMEB","","Guilherme de Almeida","da EMEB Guilherme de Almeida","10.539.014/0001-31"]
[null,null,null,null,null,null,null,null,null,null,null,null,null,null,null,null,null,null,null,null,null,null,null,null,"da","EMEB","","Heitor Villa Lobos","da EMEB Heitor Villa Lobos","49.522.253/0001-14"]
[null,null,null,null,null,null,null,null,null,null,null,null,null,null,null,null,null,null,null,null,null,null,null,null,"da","EMEB","","Helena Zanfelici da Silva","da EMEB Helena Zanfelici da Silva","02.193.853/0001-12"]
[null,null,null,null,null,null,null,null,null,null,null,null,null,null,null,null,null,null,null,null,null,null,null,null,"da","EMEB",null,"Hilda Batazoli Teixeira","da EMEB Hilda Batazoli Teixeira","30.955.112/0001-67"]
[null,null,null,null,null,null,null,null,null,null,null,null,null,null,null,null,null,null,null,null,null,null,null,null,"da","EMEB","","Hygino Baptista de Lima","da EMEB Hygino Baptista de Lima","43.336.643/0001-13"]
[null,null,null,null,null,null,null,null,null,null,null,null,null,null,null,null,null,null,null,null,null,null,null,null,"da","EMEB","","Isidoro Battistin","da EMEB Isidoro Battistin","05.911.506/0001-76"]
[null,null,null,null,null,null,null,null,null,null,null,null,null,null,null,null,null,null,null,null,null,null,null,null,"da","EMEB","","Ítalo Damiani","da EMEB Ítalo Damiani","01.579.773/0001-37"]
[null,null,null,null,null,null,null,null,null,null,null,null,null,null,null,null,null,null,null,null,null,null,null,null,"da","EMEB","Professora","Ivaneide Nogueira","da EMEB Professora Ivaneide Nogueira","04.521.103/0001-58"]
[null,null,null,null,null,null,null,null,null,null,null,null,null,null,null,null,null,null,null,null,null,null,null,null,"da","EMEB","","Jacob Zampieri","da EMEB Jacob Zampieri","13.726.873/0001-28"]
[null,null,null,null,null,null,null,null,null,null,null,null,null,null,null,null,null,null,null,null,null,null,null,null,"da","EMEB","Professora","Jandira Maria Casonato","da EMEB Professora Jandira Maria Casonato","55.051.601/0001-15"]
[null,null,null,null,null,null,null,null,null,null,null,null,null,null,null,null,null,null,null,null,null,null,null,null,"da","EMEB","Professora","Janete Mally Betti Simões","da EMEB Professora Janete Mally Betti Simões","00.831.616/0001-04"]
[null,null,null,null,null,null,null,null,null,null,null,null,null,null,null,null,null,null,null,null,null,null,null,null,"da","EMEB","Dom","Jorge Marcos de Oliveira, O Bispo dos Trabalhadores","da EMEB Dom Jorge Marcos de Oliveira, O Bispo dos Trabalhadores","00.692.934-0001-31"]
[null,null,null,null,null,null,null,null,null,null,null,null,null,null,null,null,null,null,null,null,null,null,null,null,"da","EMEB","","José Arnaud da Silva",{"$f":"TRIM(CONCATENATE(Y79,\" \",Z79,\" \",AA79,\" \",AB79))","v":"da EMEB José Arnaud da Silva"},"14.053.215/0001-85"]
[null,null,null,null,null,null,null,null,null,null,null,null,null,null,null,null,null,null,null,null,null,null,null,null,"da","EMEB","","José Augusto Oliveira Santos","da EMEB José Augusto Oliveira Santos","04.878.106/0001-43"]
[null,null,null,null,null,null,null,null,null,null,null,null,null,null,null,null,null,null,null,null,null,null,null,null,"da","EMEB","Vereador","José Avilez","da EMEB Vereador José Avilez","06.969.551/0001-44"]
[null,null,null,null,null,null,null,null,null,null,null,null,null,null,null,null,null,null,null,null,null,null,null,null,"da","EMEB","","José Cataldi","da EMEB José Cataldi","06.926.138/0001-00"]
[null,null,null,null,null,null,null,null,null,null,null,null,null,null,null,null,null,null,null,null,null,null,null,null,"da","EMEB","","José de Alencar","da EMEB José de Alencar","49.522.410/0001-91"]
[null,null,null,null,null,null,null,null,null,null,null,null,null,null,null,null,null,null,null,null,null,null,null,null,"da","EMEB","","José de Anchieta","da EMEB José de Anchieta","49.522.337/0001-58"]
[null,null,null,null,null,null,null,null,null,null,null,null,null,null,null,null,null,null,null,null,null,null,null,null,"da","EMEB","Dr.","José Ferraz de Magalhães Castro","da EMEB Dr. José Ferraz de Magalhães Castro","49.528.706/0001-10"]
[null,null,null,null,null,null,null,null,null,null,null,null,null,null,null,null,null,null,null,null,null,null,null,null,"da","EMEB","Professor","José Getúlio Escobar Bueno","da EMEB Professor José Getúlio Escobar Bueno","55.034.490/0001-39"]
[null,null,null,null,null,null,null,null,null,null,null,null,null,null,null,null,null,null,null,null,null,null,null,null,"da","EMEB","","José Ibiapino Franklin","da EMEB José Ibiapino Franklin","58.162.884/0001-60"]
[null,null,null,null,null,null,null,null,null,null,null,null,null,null,null,null,null,null,null,null,null,null,null,null,"da","EMEB","","José Luiz Jucá","da EMEB José Luiz Jucá","05.761.074-0001-64"]
[null,null,null,null,null,null,null,null,null,null,null,null,null,null,null,null,null,null,null,null,null,null,null,null,"da","EMEB","Padre","José Maurício","da EMEB Padre José Maurício","43.338.615/0001-35"]
[null,null,null,null,null,null,null,null,null,null,null,null,null,null,null,null,null,null,null,null,null,null,null,null,"da","EMEB","","José Roberto Preto","da EMEB José Roberto Preto","11.258.646/0001-90"]
[null,null,null,null,null,null,null,null,null,null,null,null,null,null,null,null,null,null,null,null,null,null,null,null,"da","EMEB","","Josué de Castro","da EMEB Josué de Castro","04.814.457/0001-90"]
[null,null,null,null,null,null,null,null,null,null,null,null,null,null,null,null,null,null,null,null,null,null,null,null,"da","EMEB","Escritor","Júlio Atlas","da EMEB Escritor Júlio Atlas","50.148.212/0001-99"]
[null,null,null,null,null,null,null,null,null,null,null,null,null,null,null,null,null,null,null,null,null,null,null,null,"da","EMEB","","Júlio de Grammont","da EMEB Júlio de Grammont","07.358.921/0001-70"]
[null,null,null,null,null,null,null,null,null,null,null,null,null,null,null,null,null,null,null,null,null,null,null,null,"da","EMEB","","Karolina Zofia Lewandowska","da EMEB Karolina Zofia Lewandowska","14.053.206/0001-94"]
[null,null,null,null,null,null,null,null,null,null,null,null,null,null,null,null,null,null,null,null,null,null,null,null,"da","EMEB","Professora","Kazue Fuzinaka","da EMEB Professora Kazue Fuzinaka","49.521.065/0001-71"]
[null,null,null,null,null,null,null,null,null,null,null,null,null,null,null,null,null,null,null,null,null,null,null,null,"da","EMEB","Vereador","Kiyoshi Tanaka","da EMEB Vereador Kiyoshi Tanaka","49.525.546/0001-55"]
[null,null,null,null,null,null,null,null,null,null,null,null,null,null,null,null,null,null,null,null,null,null,null,null,"da","EMEB","","Lauro Gomes","da EMEB Lauro Gomes","49.256.316/0001-38"]
[null,null,null,null,null,null,null,null,null,null,null,null,null,null,null,null,null,null,null,null,null,null,null,null,"da","EMEB","Padre","Leo Commissari","da EMEB Padre Leo Commissari","04.221.177/0001-79"]
[null,null,null,null,null,null,null,null,null,null,null,null,null,null,null,null,null,null,null,null,null,null,null,null,"da","EMEB","Padre","Leonardo Nunes","da EMEB Padre Leonardo Nunes","49.525.710/0001-24"]
[null,null,null,null,null,null,null,null,null,null,null,null,null,null,null,null,null,null,null,null,null,null,null,null,"da","EMEB","Professora","Lóide Ungaretti Torres","da EMEB Professora Lóide Ungaretti Torres","04.814.460/0001-04"]
[null,null,null,null,null,null,null,null,null,null,null,null,null,null,null,null,null,null,null,null,null,null,null,null,"da","EMEB","","Lopes Trovão","da EMEB Lopes Trovão","50.146.554/0001-70"]
[null,null,null,null,null,null,null,null,null,null,null,null,null,null,null,null,null,null,null,null,null,null,null,null,"da","EMEB","","Lorenzo Enrico Felice Lorenzetti ","da EMEB Lorenzo Enrico Felice Lorenzetti","04.000.746/0001-56"]
[null,null,null,null,null,null,null,null,null,null,null,null,null,null,null,null,null,null,null,null,null,null,null,null,"da","EMEB","","Lourenço Filho","da EMEB Lourenço Filho","49.524.366/0001-59"]
[null,null,null,null,null,null,null,null,null,null,null,null,null,null,null,null,null,null,null,null,null,null,null,null,"da","EMEB","","Luana Lino de Souza","da EMEB Luana Lino de Souza","04.873.389/0001-30"]
[null,null,null,null,null,null,null,null,null,null,null,null,null,null,null,null,null,null,null,null,null,null,null,null,"do","CEU","","Luiz Gushiken","do CEU Luiz Gushiken","21.504.674/0001-01"]
[null,null,null,null,null,null,null,null,null,null,null,null,null,null,null,null,null,null,null,null,null,null,null,null,"da","EMEB","","Manoel Torres de Oliveira","da EMEB Manoel Torres de Oliveira","04.832.037/0001-37"]
[null,null,null,null,null,null,null,null,null,null,null,null,null,null,null,null,null,null,null,null,null,null,null,null,"da","EMEB","Padre","Manuel da Nóbrega","da EMEB Padre Manuel da Nóbrega","49.527.658/0001-45"]
[null,null,null,null,null,null,null,null,null,null,null,null,null,null,null,null,null,null,null,null,null,null,null,null,"da","EMEB","","Marcelo Peres Ribeiro","da EMEB Marcelo Peres Ribeiro","14.566.887/0001-94"]
[null,null,null,null,null,null,null,null,null,null,null,null,null,null,null,null,null,null,null,null,null,null,null,null,"da","EMEB","","Marcelo Roberto Dias ","da EMEB Marcelo Roberto Dias","03.533.910/0001-28"]
[null,null,null,null,null,null,null,null,null,null,null,null,null,null,null,null,null,null,null,null,null,null,null,null,"da","EMEB","","Marcos Rogério da Rosa","da EMEB Marcos Rogério da Rosa","03.196.955/0001-54"]
[null,null,null,null,null,null,null,null,null,null,null,null,null,null,null,null,null,null,null,null,null,null,null,null,"da","EMEB","","Maria Adelaide","da EMEB Maria Adelaide","49.521.313/0001-84"]
[null,null,null,null,null,null,null,null,null,null,null,null,null,null,null,null,null,null,null,null,null,null,null,null,"da","EMEB","Irmã","Maria Anselma Vieira",{"$f":"TRIM(CONCATENATE(Y112,\" \",Z112,\" \",AA112,\" \",AB112))","v":"da EMEB Irmã Maria Anselma Vieira"},"04.868.631/0001-88"]
[null,null,null,null,null,null,null,null,null,null,null,null,null,null,null,null,null,null,null,null,null,null,null,null,"da","EMEB","","Maria Inês Fávero de Oliveira","da EMEB Maria Inês Fávero de Oliveira","43.336.031/0001-20"]
[null,null,null,null,null,null,null,null,null,null,null,null,null,null,null,null,null,null,null,null,null,null,null,null,"da","EMEB","Professora","Maria José Mattar Jorge","da EMEB Professora Maria José Mattar Jorge","71.540.330/0001-18"]
[null,null,null,null,null,null,null,null,null,null,null,null,null,null,null,null,null,null,null,null,null,null,null,null,"da","EMEB","","Maria José Rodrigues","da EMEB Maria José Rodrigues","07.448.992/0001-63"]
[null,null,null,null,null,null,null,null,null,null,null,null,null,null,null,null,null,null,null,null,null,null,null,null,"da","EMEB","Professora","Maria Justina de Camargo","da EMEB Professora Maria Justina de Camargo","49.522.261/0001-60"]
[null,null,null,null,null,null,null,null,null,null,null,null,null,null,null,null,null,null,null,null,null,null,null,null,"da","EMEB","","Maria Rosa Barbosa","da EMEB Maria Rosa Barbosa","05.808.732/0001-26"]
[null,null,null,null,null,null,null,null,null,null,null,null,null,null,null,null,null,null,null,null,null,null,null,null,"da","EMEB","Professora","Maria Therezinha Besana","da EMEB Professora Maria Therezinha Besana","49.521.099/0001-66"]
[null,null,null,null,null,null,null,null,null,null,null,null,null,null,null,null,null,null,null,null,null,null,null,null,"da","EMEB","","Mariana Benvinda da Costa","da EMEB Mariana Benvinda da Costa","00.889.181/0001-59"]
[null,null,null,null,null,null,null,null,null,null,null,null,null,null,null,null,null,null,null,null,null,null,null,null,"da","EMEB","","Mariana Neves Interliche","da EMEB Mariana Neves Interliche","55.056.949/0001-03"]
[null,null,null,null,null,null,null,null,null,null,null,null,null,null,null,null,null,null,null,null,null,null,null,null,"da","EMEB","Professora","Marineida Meneghelli de Lucca","da EMEB Professora Marineida Meneghelli de Lucca","67.180.885/0001-29"]
[null,null,null,null,null,null,null,null,null,null,null,null,null,null,null,null,null,null,null,null,null,null,null,null,"da","EMEB","","Mário de Andrade","da EMEB Mário de Andrade","49.522.311/0001-00"]
[null,null,null,null,null,null,null,null,null,null,null,null,null,null,null,null,null,null,null,null,null,null,null,null,"da","EMEB","","Mário Martins de Almeida","da EMEB Mário Martins de Almeida","49.253.404/0001-86"]
[null,null,null,null,null,null,null,null,null,null,null,null,null,null,null,null,null,null,null,null,null,null,null,null,"da","EMEBE","Professora","Marly Buissa Chiedde","da EMEBE Professora Marly Buissa Chiedde","51.115.657/0001-35"]
[null,null,null,null,null,null,null,null,null,null,null,null,null,null,null,null,null,null,null,null,null,null,null,null,"da","EMEB","","Maurício Caetano de Castro","da EMEB Maurício Caetano de Castro","55.055.727/0001-68"]
[null,null,null,null,null,null,null,null,null,null,null,null,null,null,null,null,null,null,null,null,null,null,null,null,"da","EMEB","","Maurício Caetano de Castro II","da EMEB Maurício Caetano de Castro II","69.121.036/0001-20"]
[null,null,null,null,null,null,null,null,null,null,null,null,null,null,null,null,null,null,null,null,null,null,null,null,"da","EMEB","","Monteiro Lobato","da EMEB Monteiro Lobato","49.524.358/0001-02"]
[null,null,null,null,null,null,null,null,null,null,null,null,null,null,null,null,null,null,null,null,null,null,null,null,"da","EMEB","","Moysés Cheid","da EMEB Moysés Cheid","00.656.386/0001-94"]
[null,null,null,null,null,null,null,null,null,null,null,null,null,null,null,null,null,null,null,null,null,null,null,null,"da","EMEB","Professora","Nádia Aparecida Issa Pina","da EMEB Professora Nádia Aparecida Issa Pina","05.878.824/0001-82"]
[null,null,null,null,null,null,null,null,null,null,null,null,null,null,null,null,null,null,null,null,null,null,null,null,"da","EMEB","","Natalina Cuzziol Ferro","da EMEB Natalina Cuzziol Ferro","05.808.742/0001-61"]
[null,null,null,null,null,null,null,null,null,null,null,null,null,null,null,null,null,null,null,null,null,null,null,null,"da","EMEBE","","Neusa Bassetto","da EMEBE Neusa Bassetto","51.116.796/0001-83"]
[null,null,null,null,null,null,null,null,null,null,null,null,null,null,null,null,null,null,null,null,null,null,null,null,"da","EMEB","Professora","Neusa Macellaro Callado Moraes","da EMEB Professora Neusa Macellaro Callado Moraes","03.237.137/0001-52"]
[null,null,null,null,null,null,null,null,null,null,null,null,null,null,null,null,null,null,null,null,null,null,null,null,"da","EMEB","Professor","Nilo Campos Gomes","da EMEB Professor Nilo Campos Gomes","55.034.581/0001-74"]
[null,null,null,null,null,null,null,null,null,null,null,null,null,null,null,null,null,null,null,null,null,null,null,null,"da","EMEB","","Octávio Edgard de Oliveira","da EMEB Octávio Edgard de Oliveira","59.988.667/0001-97"]
[null,null,null,null,null,null,null,null,null,null,null,null,null,null,null,null,null,null,null,null,null,null,null,null,"da","EMEB","Deputado","Odemir Furlan","da EMEB Deputado Odemir Furlan","66.849.290/0001-50"]
[null,null,null,null,null,null,null,null,null,null,null,null,null,null,null,null,null,null,null,null,null,null,null,null,"da","EMEB","Irmã","Odete - Maria Ramos Pinto","da EMEB Irmã Odete - Maria Ramos Pinto","10.247.564/0001-87"]
[null,null,null,null,null,null,null,null,null,null,null,null,null,null,null,null,null,null,null,null,null,null,null,null,"da","EMEB","","Odette Edith Périgo de Lima","da EMEB Odette Edith Périgo de Lima","55.055.867/0001-36"]
[null,null,null,null,null,null,null,null,null,null,null,null,null,null,null,null,null,null,null,null,null,null,null,null,"da","EMEB","","Olavo Bilac","da EMEB Olavo Bilac","49.522.329/0001-01"]
[null,null,null,null,null,null,null,null,null,null,null,null,null,null,null,null,null,null,null,null,null,null,null,null,"da","EMEB","","Ondina Ignêz de Oliveira","da EMEB Ondina Ignêz de Oliveira","55.061.949/0001-93"]
[null,null,null,null,null,null,null,null,null,null,null,null,null,null,null,null,null,null,null,null,null,null,null,null,"da","EMEB","Professor","Otílio de Oliveira","da EMEB Professor Otílio de Oliveira","49.252.083/0001-03"]
[null,null,null,null,null,null,null,null,null,null,null,null,null,null,null,null,null,null,null,null,null,null,null,null,"da","EMEB","","Paschoal Carlos Magno","da EMEB Paschoal Carlos Magno","51.126.084/0001-45"]
[null,null,null,null,null,null,null,null,null,null,null,null,null,null,null,null,null,null,null,null,null,null,null,null,"da","EMEB","Professor","Paulo Freire","da EMEB Professor Paulo Freire","04.115.348/0001-85"]
[null,null,null,null,null,null,null,null,null,null,null,null,null,null,null,null,null,null,null,null,null,null,null,null,"da","EMEB","","Paulo Morando","da EMEB Paulo Morando","03.547.990/0001-70"]
[null,null,null,null,null,null,null,null,null,null,null,null,null,null,null,null,null,null,null,null,null,null,null,null,"da","EMEB","Professor","Paulo Teixeira de Camargo","da EMEB Professor Paulo Teixeira de Camargo","58.143.009/0001-31"]
[null,null,null,null,null,null,null,null,null,null,null,null,null,null,null,null,null,null,null,null,null,null,null,null,"da","EMEB",null,"Pedra de Carvalho","da EMEB Pedra de Carvalho","47.033.666/0001-00"]
[null,null,null,null,null,null,null,null,null,null,null,null,null,null,null,null,null,null,null,null,null,null,null,null,"da","EMEB","Professor","Pedro Augusto Gomes Cardim","da EMEB Professor Pedro Augusto Gomes Cardim","50.146.562/0001-16"]
[null,null,null,null,null,null,null,null,null,null,null,null,null,null,null,null,null,null,null,null,null,null,null,null,"da","EMEB","","Pedro Morassi","da EMEB Pedro Morassi","43.323.880/0001-40"]
[null,null,null,null,null,null,null,null,null,null,null,null,null,null,null,null,null,null,null,null,null,null,null,null,"da","EMEB","Professor","Ramiro Gonçalez Fernandes","da EMEB Professor Ramiro Gonçalez Fernandes","50.145.192/0001-00"]
[null,null,null,null,null,null,null,null,null,null,null,null,null,null,null,null,null,null,null,null,null,null,null,null,"do","CEU","","Regina Rocco Casa - Bloco 1","do CEU Regina Rocco Casa - Bloco 1","18.594.897/0001-94"]
[null,null,null,null,null,null,null,null,null,null,null,null,null,null,null,null,null,null,null,null,null,null,null,null,"do","CEU","","Regina Rocco Casa II","do CEU Regina Rocco Casa II","18.883.063/0001-07"]
[null,null,null,null,null,null,null,null,null,null,null,null,null,null,null,null,null,null,null,null,null,null,null,null,"da","EMEB","Pastor","Roberto Montanheiro","da EMEB Pastor Roberto Montanheiro","04.799.442/0001-09"]
[null,null,null,null,null,null,null,null,null,null,null,null,null,null,null,null,null,null,null,null,null,null,null,null,"da","EMEBE","","Rolando Ramacciotti","da EMEBE Rolando Ramacciotti","51.116.663/0001-07"]
[null,null,null,null,null,null,null,null,null,null,null,null,null,null,null,null,null,null,null,null,null,null,null,null,"da","EMEB","Professora","Rosa de Pacce dos Santos","da EMEB Professora Rosa de Pacce dos Santos","04.825.912/0001-53"]
[null,null,null,null,null,null,null,null,null,null,null,null,null,null,null,null,null,null,null,null,null,null,null,null,"da","EMEB","","Rubem Alves","da EMEB Rubem Alves","24.557.305/0001-67"]
[null,null,null,null,null,null,null,null,null,null,null,null,null,null,null,null,null,null,null,null,null,null,null,null,"da","EMEB","","Rui Barbosa","da EMEB Rui Barbosa","49.525.728/0001-26"]
[null,null,null,null,null,null,null,null,null,null,null,null,null,null,null,null,null,null,null,null,null,null,null,null,"da","EMEB","","Sadao Higuchi","da EMEB Sadao Higuchi","12.625.560/0001-10"]
[null,null,null,null,null,null,null,null,null,null,null,null,null,null,null,null,null,null,null,null,null,null,null,null,"da","EMEB","Professor","Salvador Gori","da EMEB Professor Salvador Gori","55.055.008/0001-47"]
[null,null,null,null,null,null,null,null,null,null,null,null,null,null,null,null,null,null,null,null,null,null,null,null,"da","EMEB","Professora","Sandra Cruz Martins Freitas","da EMEB Professora Sandra Cruz Martins Freitas","04.796.861/0001-89"]
[null,null,null,null,null,null,null,null,null,null,null,null,null,null,null,null,null,null,null,null,null,null,null,null,"da","EMEB","","Santos Dumont","da EMEB Santos Dumont","49.526.379/0001-67"]
[null,null,null,null,null,null,null,null,null,null,null,null,null,null,null,null,null,null,null,null,null,null,null,null,"da","EMEB","Professor","Silvio Teles de Souza","da EMEB Professor Silvio Teles de Souza","04.473.992/0001-25"]
[null,null,null,null,null,null,null,null,null,null,null,null,null,null,null,null,null,null,null,null,null,null,null,null,"da","EMEB","Professora","Sônia Regina Hernandez de Lima","da EMEB Professora Sônia Regina Hernandez de Lima","06.328.880/0001-06"]
[null,null,null,null,null,null,null,null,null,null,null,null,null,null,null,null,null,null,null,null,null,null,null,null,"da","EMEB","Professora","Suzete Aparecida de Campos","da EMEB Professora Suzete Aparecida de Campos","04.174.691/0001-09"]
[null,null,null,null,null,null,null,null,null,null,null,null,null,null,null,null,null,null,null,null,null,null,null,null,"da","EMEB","Professora","Sylvia Marilena Fantacini Zanetti","da EMEB Professora Sylvia Marilena Fantacini Zanetti","43.293.646/0001-17"]
[null,null,null,null,null,null,null,null,null,null,null,null,null,null,null,null,null,null,null,null,null,null,null,null,"da","EMEB","","Tarsila do Amaral","da EMEB Tarsila do Amaral","11.357.245/0001-97"]
[null,null,null,null,null,null,null,null,null,null,null,null,null,null,null,null,null,null,null,null,null,null,null,null,"da","EMEB","Senador","Teotônio Vilela","da EMEB Senador Teotônio Vilela","55.054.258/0001-62"]
[null,null,null,null,null,null,null,null,null,null,null,null,null,null,null,null,null,null,null,null,null,null,null,null,"da","EMEB","","Tereza Delta","da EMEB Tereza Delta","00.665.940/0001-08"]
[null,null,null,null,null,null,null,null,null,null,null,null,null,null,null,null,null,null,null,null,null,null,null,null,"da","EMEB","","Thales de Andrade","da EMEB Thales de Andrade","49.524.382/0001-41"]
[null,null,null,null,null,null,null,null,null,null,null,null,null,null,null,null,null,null,null,null,null,null,null,null,"da","EMEB","","Valderez Avelino de Souza","da EMEB Valderez Avelino de Souza","04.873.399/0001-76"]
[null,null,null,null,null,null,null,null,null,null,null,null,null,null,null,null,null,null,null,null,null,null,null,null,"da","EMEB","","Vicente de Carvalho","da EMEB Vicente de Carvalho","49.522.436/0001-30"]
[null,null,null,null,null,null,null,null,null,null,null,null,null,null,null,null,null,null,null,null,null,null,null,null,"da","EMEB","Dr.","Vicente Zammite Mammana","da EMEB Dr. Vicente Zammite Mammana","49.525.082/0001-87"]
[null,null,null,null,null,null,null,null,null,null,null,null,null,null,null,null,null,null,null,null,null,null,null,null,"da","EMEB","","Vinícius de Moraes","da EMEB Vinícius de Moraes","49.522.444/0001-86"]
[null,null,null,null,null,null,null,null,null,null,null,null,null,null,null,null,null,null,null,null,null,null,null,null,"da","EMEB","","Viriato Correia","da EMEB Viriato Correia","49.529.431/0001-39"]
[null,null,null,null,null,null,null,null,null,null,null,null,null,null,null,null,null,null,null,null,null,null,null,null,"da","EMEB","","Vital Brasil","da EMEB Vital Brasil","50.143.908/0001-22"]
[null,null,null,null,null,null,null,null,null,null,null,null,null,null,null,null,null,null,null,null,null,null,null,null,"da","EMEB","Professor","Waldemar Canciani","da EMEB Professor Waldemar Canciani","04.036.543/0001-10"]
[null,null,null,null,null,null,null,null,null,null,null,null,null,null,null,null,null,null,null,null,null,null,null,null,"da","EMEB","Professora","Zoraida Aparecida Ramos","da EMEB Professora Zoraida Aparecida Ramos","11.197.762/0001-46"]

{"sheet":"Relação Anexa","index":1,"n_rows":65,"n_cols":5,"rows_kept":65,"cut":false,"hidden":false,"merged":[[62,0,62,4],[35,1,35,3],[36,1,36,3],[37,1,37,3],[38,1,38,3],[39,1,39,3],[40,1,40,3],[41,1,41,3],[42,1,42,3],[43,1,43,3],[44,1,44,3],[58,1,58,3],[59,1,59,3],[45,1,45,3],[47,1,47,3],[49,1,49,3],[12,1,12,3],[13,1,13,3],[14,1,14,3],[34,1,34,3],[25,1,25,3],[26,1,26,3],[27,1,27,3],[28,1,28,3],[29,1,29,3],[30,1,30,3],[31,1,31,3],[32,1,32,3],[33,1,33,3],[21,1,21,3],[22,1,22,3],[23,1,23,3],[24,1,24,3],[15,1,15,3],[16,1,16,3],[17,1,17,3],[18,1,18,3],[19,1,19,3],[20,1,20,3],[0,0,0,4],[61,0,61,3],[64,0,64,4],[63,0,63,4],[3,1,3,3],[4,1,4,3],[46,1,46,3],[48,1,48,3],[50,1,50,3],[51,1,51,3],[52,1,52,3],[53,1,53,3],[54,1,54,3],[55,1,55,3],[56,1,56,3],[57,1,57,3],[1,3,1,4],[1,0,1,2],[2,1,2,4],[10,1,10,3],[11,1,11,3],[5,1,5,3],[6,1,6,3],[7,1,7,3],[8,1,8,3],[9,1,9,3]]}
["CONSOLIDAÇÃO DE PESQUISA DE PREÇOS - PDDE"]
["Relação anexa - Compra de materiais"]
["APM ",{"$f":"Consolidação!C6","v":0}]
["Item","Descrição",null,null,"Quantidade"]
[{"$f":"IF(B5=\"\",\"\",1)","v":""}]
[{"$f":"IF(B6=\"\",\"\",A5+1)","v":""}]
[{"$f":"IF(B7=\"\",\"\",A6+1)","v":""}]
[""]
[""]
[""]
[""]
[""]
[""]
[""]
[""]
[""]
[""]
[""]
[""]
[""]
[""]
[""]
[""]
[""]
[""]
[""]
[""]
[""]
[""]
[""]
[""]
[""]
[""]
[""]
[""]
[""]
[""]
[""]
[""]
[""]
[""]
[""]
[""]
[""]
[""]
[{"$f":"IF(B46=\"\",\"\",A45+1)","v":""}]
[""]
[""]
[{"$f":"IF(B49=\"\",\"\",A48+1)","v":""}]
[{"$f":"IF(B50=\"\",\"\",A49+1)","v":""}]
[""]
[""]
[""]
[""]
[""]
[""]
[""]
[""]
[""]
[""]
[]
["Esta relação compõe a Consolidação de Pesquisa de Preços de ",null,null,null,{"$f":"Consolidação!E44","v":"00:00:00"}]
[]
[]
[{"$f":"Consolidação!H44","v":0}]

{"sheet":"Plan3","index":2,"n_rows":0,"n_cols":0,"rows_kept":0,"cut":false,"hidden":true,"merged":[]}